bitfinex/quotes_ETHUSD_20241009
["timestamp","ask_amount","ask_price","bid_price","bid_amount"]
[1728492313190,8.21436,2434.8,2434.6,2.0]
[1728492313531,4.10728,2434.7,2434.6,2.0]
[1728492313714,4.10711,2434.8,2434.6,2.0]
[1728492314029,7.92881,2435.1,2434.6,6.10735]
[1728492314226,7.10661,2435.1,2434.7,1.414935]
[1728492314428,3.0,2435.1,2434.7,1.414935]
[1728492314636,4.10621,2435.4,2434.8,4.10701]
[1728492314817,4.10621,2435.4,2434.9,4.10683]
[1728492314994,4.10621,2435.4,2434.8,4.10701]
[1728492315197,4.10645,2435.2,2434.9,0.5521945]
[1728492316301,4.10643,2435.3,2434.9,0.5521945]
[1728492316599,4.10641,2435.3,2434.9,0.5521945]
[1728492316800,8.21284,2435.3,2434.9,0.5521945]
[1728492317001,4.10652,2435.2,2434.9,0.5521945]
[1728492317632,3.79125227,2435.4,2434.7,1.414935]
[1728492317799,4.10723,2434.8,2434.6,2.0]
[1728492317998,4.10728,2434.7,2434.6,2.0]
[1728492318312,8.21444,2434.8,2434.6,2.0]
[1728492318698,4.10728,2434.7,2434.6,2.0]
[1728492322243,3.79125227,2435.0,2434.6,2.0]
[1728492322244,4.10701,2434.9,2434.6,2.0]
[1728492322570,4.10689,2435.0,2434.6,2.0]
[1728492322571,4.1068,2435.0,2434.7,0.8042]
[1728492323861,4.10698,2434.9,2434.7,0.8042]
[1728492324444,4.10718,2434.8,2434.6,2.0]
[1728492324643,4.10728,2434.7,2434.6,2.0]
[1728492325168,0.8222,2435.0,2434.6,2.0]
[1728492325169,4.10696,2434.9,2434.6,2.0]
[1728492325326,4.10696,2434.9,2434.7,0.8042]
[1728492326164,6.55538838,2435.6,2434.8,4.10702]
[1728492326332,4.10635,2435.3,2434.9,4.10684]
[1728492326532,4.10635,2435.3,2435.0,1.235184]
[1728492326940,4.59255227,2435.8,2435.1,4.10654]
[1728492327268,4.10544,2435.8,2435.3,4.10617]
[1728492327570,4.10544,2435.8,2435.4,0.8245]
[1728492328168,4.1056,2435.7,2435.4,0.8245]
[1728492328331,4.1056,2435.7,2435.4,1.317566]
[1728492328766,4.10528,2435.9,2435.5,4.10592]
[1728492328975,7.10512,2436.0,2435.5,4.10592]
[1728492329131,4.10535,2435.9,2435.5,4.10584]
[1728492329962,4.10511,2436.0,2435.5,8.21169]
[1728492330163,4.10511,2436.0,2435.6,0.08210693]
[1728492330731,4.10526,2435.9,2435.5,5.0587656]
[1728492330957,4.10526,2435.9,2435.5,0.9529256]
[1728492331157,8.21064,2435.9,2435.5,0.9529256]
[1728492331770,4.10526,2435.9,2435.5,0.9529256]
[1728492331975,4.10526,2435.9,2435.6,0.58834856]
[1728492332156,4.1051,2436.0,2435.7,0.8245]
[1728492332857,4.10472,2436.3,2435.7,0.8245]
[1728492333181,4.10472,2436.3,2435.6,4.69410856]
[1728492333182,4.90532,2436.7,2435.9,0.8245]
[1728492333337,4.10392,2436.7,2436.2,4.92916]
[1728492333536,4.10392,2436.7,2436.3,4.1045]
[1728492333944,4.10392,2436.7,2436.2,1.317416]
[1728492334143,4.10392,2436.7,2436.2,5.422146]
[1728492334537,4.10412,2436.6,2436.2,5.422146]
[1728492334688,4.10412,2436.6,2436.2,0.8245]
[1728492334985,4.10412,2436.6,2435.6,0.58834856]
[1728492334986,4.10492,2436.1,2435.7,0.8245]
[1728492335188,8.2096,2436.2,2435.7,4.93007]
[1728492335568,8.20891,2436.4,2435.9,4.10514]
[1728492335747,8.20892,2436.4,2436.0,0.410514]
[1728492336087,4.10441,2436.4,2436.0,0.410514]
[1728492336385,4.10466,2436.3,2436.0,0.410514]
[1728492337381,4.10466,2436.3,2435.7,4.93006]
[1728492337568,4.10477,2436.2,2435.7,4.93006]
[1728492337768,4.10493,2436.1,2435.7,4.93006]
[1728492337953,4.10511,2436.0,2435.7,0.8245]
[1728492338158,4.10493,2436.1,2435.7,0.8245]
[1728492339463,4.10493,2436.1,2435.7,1.78694086]
[1728492339661,4.10471,2436.3,2436.0,0.8245]
[1728492339889,4.1047,2436.3,2436.0,0.8245]
[1728492340391,4.10483,2436.2,2435.8,0.8245]
[1728492341962,4.10467,2436.3,2435.8,4.92988]
[1728492342164,4.10467,2436.3,2435.9,5.10503009]
[1728492342588,4.10442,2436.4,2435.9,5.10503009]
[1728492343503,4.10458,2436.3,2435.9,5.10503009]
[1728492346004,7.89509227,2436.8,2436.3,4.10457]
[1728492346005,4.10386,2436.8,2436.3,4.10457]
[1728492346174,4.10386,2436.8,2436.4,0.8245]
[1728492346374,4.10402,2436.7,2436.4,0.8245]
[1728492347168,4.10402,2436.7,2436.4,1.317422]
[1728492351680,4.10359,2436.9,2436.4,1.317422]
[1728492351866,4.10374,2436.8,2436.4,5.421742]
[1728492352920,0.8013,2437.0,2436.5,4.10424]
[1728492353068,7.10333,2437.1,2436.6,4.72823997]
[1728492353304,4.10263,2437.5,2437.1,4.10323]
[1728492353647,4.10263,2437.5,2437.2,0.8245]
[1728492354115,8.20533,2437.5,2437.2,0.8245]
[1728492354447,4.10263,2437.5,2437.2,0.8245]
[1728492355222,8.20527,2437.5,2437.2,0.8245]
[1728492355547,6.79125227,2437.7,2437.2,2.8245]
[1728492355548,4.10283,2437.4,2437.2,2.8245]
[1728492357005,7.10257,2437.5,2437.2,2.8245]
[1728492357841,4.10273,2437.4,2437.2,2.8245]
[1728492358142,3.0,2437.5,2437.2,3.517277]
[1728492358356,4.10273,2437.4,2437.2,3.517277]
[1728492359219,4.10267,2437.5,2437.2,3.517277]
[1728492359422,4.10276,2437.4,2437.2,3.517277]
[1728492360216,4.10276,2437.4,2437.2,2.8245]
[1728492360414,4.10276,2437.4,2437.2,2.0]
[1728492361446,4.1029,2437.3,2437.2,2.0]
[1728492361757,4.10276,2437.4,2437.2,2.0]
[1728492362103,7.10259,2437.5,2437.2,2.0]
[1728492362505,0.8292,2437.6,2437.2,2.610339]
[1728492362706,4.10215,2437.8,2437.3,0.7643]
[1728492362955,4.10215,2437.8,2437.3,4.86706]
[1728492363107,4.10239,2437.6,2437.3,0.84634577]
[1728492363312,4.10257,2437.5,2437.3,0.7643]
[1728492363612,4.10257,2437.5,2437.3,1.5120789]
[1728492363805,4.10225,2437.7,2437.3,1.5120789]
[1728492364413,4.10226,2437.7,2437.3,5.6149689]
[1728492365515,8.20425,2437.8,2437.4,4.10273]
[1728492366033,4.10224,2437.7,2437.3,5.6149589]
[1728492366234,4.10224,2437.7,2437.4,1.61195902]
[1728492366460,4.10224,2437.7,2437.3,5.6149489]
[1728492366461,4.10227,2437.7,2437.3,5.6149489]
[1728492367751,4.10206,2437.8,2437.3,5.6149489]
[1728492367927,4.10206,2437.8,2437.4,4.1027]
[1728492369539,4.10226,2437.7,2437.4,1.55912981]
[1728492370177,4.10247,2437.6,2437.4,1.55912981]
[1728492370334,4.10226,2437.7,2437.3,0.7643]
[1728492370834,4.10245,2437.6,2437.3,0.7643]
[1728492376035,4.10224,2437.7,2437.3,0.7643]
[1728492376482,4.10242,2437.6,2437.3,0.7643]
[1728492376642,4.10224,2437.7,2437.3,0.7643]
[1728492376842,4.10239,2437.6,2437.4,1.097019]
[1728492377873,4.10271,2437.5,2437.3,0.7643]
[1728492378076,4.10233,2437.7,2437.3,0.7643]
[1728492378250,4.10258,2437.5,2437.3,0.7643]
[1728492379061,4.10273,2437.4,2437.2,2.0]
[1728492379370,4.90908,2437.5,2437.2,2.0]
[1728492379607,4.10258,2437.5,2437.2,3.102752]
[1728492379767,0.8175,2437.9,2437.3,0.7519]
[1728492379953,3.0,2438.1,2437.2,3.102752]
[1728492379954,4.10175,2438.0,2437.6,3.79125227]
[1728492380163,7.10171,2438.1,2437.9,0.76]
[1728492380164,8.20336,2438.1,2437.9,0.76]
[1728492380357,4.10165,2438.1,2437.9,0.76]
[1728492380677,4.10163,2438.1,2437.9,0.76]
[1728492380877,8.2033,2438.1,2437.9,0.76]
[1728492381062,4.10172,2438.0,2437.9,0.76]
[1728492381748,4.10118,2438.4,2437.9,1.5119]
[1728492381947,4.1013,2438.3,2437.9,1.5119]
[1728492382147,4.1013,2438.3,2437.9,2.483509]
[1728492382346,4.1013,2438.3,2437.9,6.585339]
[1728492382576,11.52065,2438.7,2438.0,7.89293227]
[1728492382577,4.10114,2438.4,2438.0,7.89293227]
[1728492382897,4.10114,2438.4,2438.0,3.79125227]
[1728492383058,4.10114,2438.4,2438.0,3.87327676]
[1728492383397,4.10114,2438.4,2438.1,1.45604258]
[1728492384774,4.10122,2438.3,2438.1,1.45604258]
[1728492384987,4.10147,2438.2,2437.9,1.5119]
[1728492385393,4.10132,2438.3,2437.9,1.5119]
[1728492385703,4.10139,2438.2,2437.9,1.5119]
[1728492387959,4.1011,2438.4,2437.9,1.5119]
[1728492388167,8.20226,2438.4,2438.0,0.65162688]
[1728492388365,4.1011,2438.4,2438.0,0.65162688]
[1728492388704,8.20223,2438.4,2438.0,0.65162688]
[1728492389114,4.10129,2438.3,2438.0,0.56959699]
[1728492390167,4.1011,2438.4,2438.0,0.56959699]
[1728492390402,4.1011,2438.4,2438.1,0.6183347]
[1728492390767,8.20226,2438.4,2438.1,0.6183347]
[1728492390987,4.10099,2438.5,2438.2,0.8192]
[1728492391809,4.10106,2438.4,2438.2,0.8192]
[1728492392723,4.10091,2438.5,2438.2,0.8192]
[1728492392929,7.10047,2438.8,2438.3,4.65511347]
[1728492393223,7.42,2439.0,2438.5,4.92296]
[1728492393224,4.10024,2438.9,2438.5,4.92296]
[1728492393436,4.10024,2438.9,2438.5,1.5821]
[1728492393587,4.10024,2438.9,2438.6,0.568313]
[1728492393788,4.10024,2438.9,2438.5,1.5821]
[1728492396127,4.10039,2438.8,2438.5,1.5821]
[1728492396427,4.10024,2438.9,2438.5,1.5821]
[1728492397529,11.1995,2439.3,2438.5,1.5821]
[1728492397530,4.10065,2438.7,2438.5,1.5821]
[1728492397896,4.10038,2438.8,2438.5,1.5821]
[1728492398126,4.10038,2438.8,2438.5,2.20580335]
[1728492398528,8.20088,2438.8,2438.5,2.20580335]
[1728492398737,8.20087,2438.8,2438.5,2.20580335]
[1728492399433,4.10038,2438.8,2438.5,2.20580335]
[1728492399624,4.10022,2438.9,2438.5,2.20580335]
[1728492399823,4.1001,2439.0,2438.6,4.82151098]
[1728492400035,11.1995,2439.3,2438.8,4.92604]
[1728492400036,7.09966,2439.3,2438.8,4.92604]
[1728492400218,4.09979,2439.2,2438.8,5.0080382]
[1728492402233,4.09966,2439.3,2438.8,9.1082782]
[1728492402404,4.09963,2439.3,2438.8,4.92604]
[1728492402596,4.09973,2439.2,2438.9,0.568604]
[1728492403498,4.09973,2439.2,2438.9,0.65058766]
[1728492403798,4.09973,2439.2,2438.9,0.568604]
[1728492404522,4.09996,2439.1,2438.9,0.568604]
[1728492404718,4.1002,2438.9,2438.7,0.76]
[1728492406052,4.10037,2438.8,2438.7,0.76]
[1728492406338,7.91777,2438.8,2438.7,0.76]
[1728492411461,8.46777,2438.8,2438.7,0.76]
[1728492411616,8.89453701,2438.8,2438.7,0.76]
[1728492417022,36.33214936,2438.8,2438.7,0.76]
[1728492418355,60.27318436,2438.8,2438.7,0.76]
[1728492418727,4.10222,2437.7,2437.6,0.8041]
[1728492421372,4.10172,2438.0,2437.7,0.7559]
[1728492422237,4.10148,2438.2,2437.7,0.7559]
[1728492422546,4.10148,2438.2,2437.9,0.8156]
[1728492422547,4.10158,2438.1,2437.9,0.8156]
[1728492423723,4.10172,2438.0,2437.9,0.8156]
[1728492425466,4.10131,2438.3,2437.9,0.7687]
[1728492426328,4.10108,2438.4,2437.9,4.87057]
[1728492426631,4.10108,2438.4,2438.0,0.89725]
[1728492427166,4.10108,2438.4,2438.0,4.99897]
[1728492427366,4.10088,2438.5,2438.2,0.7762]
[1728492428326,4.10069,2438.7,2438.2,0.7762]
[1728492428559,8.19994,2439.1,2438.6,4.10063]
[1728492428859,4.10004,2439.0,2438.8,0.7758]
[1728492429097,4.10004,2439.0,2438.1,7.38]
[1728492429098,4.10004,2439.0,2438.5,0.7758]
[1728492429404,4.10052,2438.8,2438.5,0.7758]
[1728492429560,4.10024,2438.9,2438.5,0.7758]
[1728492429561,8.20058,2438.9,2438.5,0.7758]
[1728492429761,8.20058,2438.9,2438.6,0.4958761]
[1728492429956,4.09963,2439.3,2438.6,4.67852709]
[1728492430261,4.1003,2438.9,2438.7,0.7758]
[1728492430595,4.10037,2438.8,2438.7,0.7758]
[1728492431083,4.10055,2438.7,2438.4,0.7714]
[1728492431401,4.10037,2438.8,2438.5,0.487253]
[1728492431402,8.20089,2438.8,2438.5,0.487253]
[1728492431699,4.10069,2438.7,2438.5,0.487253]
[1728492431902,4.10069,2438.7,2438.4,0.7714]
[1728492432063,6.79125227,2439.4,2438.4,0.7714]
[1728492432064,4.10035,2438.9,2438.4,7.89216227]
[1728492432264,4.10035,2438.9,2438.5,0.7502]
[1728492432265,4.10037,2438.9,2438.5,0.7502]
[1728492433201,4.10038,2438.8,2438.5,0.7502]
[1728492434260,4.09977,2439.2,2438.9,0.8298]
[1728492434603,4.09903,2439.6,2439.1,0.8298]
[1728492434604,4.09914,2439.6,2439.1,0.8298]
[1728492434905,4.09934,2439.5,2439.1,4.92964]
[1728492435105,4.09953,2439.3,2439.1,1.81996762]
[1728492435260,4.09953,2439.3,2439.1,0.8298]
[1728492435461,4.09934,2439.5,2439.1,0.8298]
[1728492435662,4.09941,2439.4,2439.1,0.8298]
[1728492437696,8.19866,2439.5,2439.1,0.8298]
[1728492437894,3.7976,2439.7,2439.1,0.8298]
[1728492438223,4.09928,2439.5,2439.1,0.8298]
[1728492438384,4.09954,2439.3,2439.1,0.8298]
[1728492438580,4.09954,2439.3,2438.8,0.7625]
[1728492438581,4.09987,2439.1,2438.8,0.7625]
[1728492438818,4.09982,2439.2,2438.8,5.349164]
[1728492439017,7.89030227,2439.6,2438.8,5.349164]
[1728492439018,4.09997,2439.1,2438.8,0.7625]
[1728492439220,4.10015,2439.0,2438.8,0.7625]
[1728492439437,4.10023,2438.9,2438.6,0.8119]
[1728492439599,4.10054,2438.7,2438.3,0.8119]
[1728492439937,0.7595,2438.9,2438.3,0.8119]
[1728492440088,4.10071,2438.6,2438.3,0.8119]
[1728492440281,8.20153,2438.6,2438.3,0.8119]
[1728492440518,4.10071,2438.6,2438.3,0.8119]
[1728492440883,4.10089,2438.5,2438.3,0.8119]
[1728492441084,4.10071,2438.6,2438.3,0.8119]
[1728492442028,4.10057,2438.7,2438.3,4.91311]
[1728492442235,4.10019,2439.0,2438.5,4.10075]
[1728492442521,8.19988,2439.1,2438.7,4.10045]
[1728492442728,4.09988,2439.1,2438.7,4.10045]
[1728492443285,4.09988,2439.1,2438.7,5.002699]
[1728492445327,4.09988,2439.1,2438.7,0.902259]
[1728492445526,4.09988,2439.1,2438.6,4.10057]
[1728492445692,4.09988,2439.1,2438.5,4.92203]
[1728492445693,8.19986,2439.1,2438.7,4.10054]
[1728492446025,4.09988,2439.1,2438.7,4.10054]
[1728492446390,4.09988,2439.1,2438.6,4.10068]
[1728492446590,3.79125227,2439.2,2438.6,8.20126]
[1728492446915,4.0999,2439.1,2438.6,8.20116]
[1728492447119,8.19991,2439.1,2438.6,4.10058]
[1728492447573,4.0999,2439.1,2438.6,4.10058]
[1728492447733,4.10053,2438.8,2438.5,0.8213]
[1728492447933,4.10032,2438.9,2438.5,0.8213]
[1728492448261,4.10032,2438.9,2438.5,4.92216]
[1728492448625,4.10053,2438.8,2438.5,0.8213]
[1728492450245,4.60465227,2439.0,2438.5,0.8213]
[1728492450448,4.10052,2438.8,2438.5,0.8213]
[1728492450644,4.10056,2438.7,2438.5,0.8213]
[1728492451268,4.10041,2438.8,2438.5,0.8213]
[1728492451639,4.10058,2438.7,2438.5,0.8213]
[1728492451851,4.10089,2438.5,2438.2,0.7696]
[1728492452174,8.20186,2438.5,2438.2,0.7696]
[1728492452388,4.10089,2438.5,2438.2,0.7696]
[1728492452939,4.10079,2438.6,2438.2,0.7696]
[1728492453173,4.10079,2438.6,2438.2,4.87097]
[1728492453674,4.10089,2438.5,2438.2,0.7696]
[1728492453839,4.10073,2438.6,2438.2,4.87098]
[1728492455401,8.20157,2438.6,2438.2,4.87098]
[1728492455577,4.10073,2438.6,2438.2,4.87098]
[1728492456501,8.20158,2438.6,2438.2,4.87098]
[1728492456673,4.10073,2438.6,2438.2,4.87098]
[1728492458275,8.20158,2438.6,2438.2,4.87098]
[1728492458471,4.10073,2438.6,2438.2,4.87098]
[1728492458796,4.10073,2438.6,2438.2,9.869535]
[1728492459021,4.10073,2438.6,2438.2,5.768155]
[1728492460010,4.10088,2438.5,2438.2,1.666855]
[1728492460214,3.79125227,2438.8,2438.2,0.7696]
[1728492460392,3.79125227,2438.8,2437.8,4.96010364]
[1728492460393,4.10172,2438.0,2437.9,0.7941]
[1728492461009,4.10157,2438.1,2437.9,0.7941]
[1728492461181,4.89925,2438.3,2437.9,0.7941]
[1728492461182,4.10142,2438.2,2437.9,0.7941]
[1728492461375,4.10142,2438.2,2437.9,1.37329057]
[1728492462300,4.09999,2439.1,2437.9,1.37329057]
[1728492462301,4.10101,2438.5,2437.9,1.37329057]
[1728492462513,7.2182962,2438.8,2438.1,4.10144]
[1728492462514,7.52755393,2438.8,2438.1,4.10144]
[1728492462817,7.52755393,2438.8,2437.9,0.05293271]
[1728492462818,4.10085,2438.6,2438.2,4.89569]
[1728492463182,4.10085,2438.6,2438.2,0.7944]
[1728492463490,4.10098,2438.5,2438.2,0.7944]
[1728492464617,4.10085,2438.6,2438.2,0.7944]
[1728492464789,4.10089,2438.5,2438.2,0.7944]
[1728492464991,8.20189,2438.5,2438.2,0.7944]
[1728492465195,4.10089,2438.5,2438.2,0.7944]
[1728492468007,6.79125227,2438.8,2438.2,0.7944]
[1728492468211,4.10094,2438.5,2438.2,0.7944]
[1728492469288,4.10072,2438.6,2438.2,4.89576]
[1728492469289,4.10075,2438.6,2438.2,4.89576]
[1728492470570,8.20155,2438.6,2438.2,4.89576]
[1728492470931,4.10075,2438.6,2438.2,4.89576]
[1728492472129,4.10075,2438.6,2438.2,0.7944]
[1728492472525,4.10089,2438.5,2438.2,0.7944]
[1728492473454,4.10117,2438.4,2438.2,0.7944]
[1728492474176,4.10089,2438.5,2438.2,0.7944]
[1728492474787,4.10111,2438.4,2438.2,0.7944]
[1728492474945,4.10089,2438.5,2438.2,0.7944]
[1728492475282,8.20187,2438.5,2438.2,0.7944]
[1728492475665,4.10115,2438.4,2438.2,0.7944]
[1728492476637,4.10092,2438.5,2438.2,0.7944]
[1728492477082,4.1011,2438.4,2438.2,0.7944]
[1728492477756,4.1011,2438.4,2438.2,0.79303229]
[1728492478684,8.2023,2438.4,2438.2,0.79303229]
[1728492478883,4.1011,2438.4,2438.2,0.79303229]
[1728492479792,4.10091,2438.5,2438.2,0.79303229]
[1728492481091,4.10113,2438.4,2438.2,0.79303229]
[1728492481303,4.10172,2438.0,2437.9,0.7944]
[1728492482354,4.10162,2438.1,2437.9,0.7944]
[1728492483280,0.8285,2438.5,2437.9,1.284052]
[1728492483455,4.09996,2439.1,2438.1,0.7944]
[1728492483456,4.10113,2438.4,2438.1,0.7944]
[1728492483774,8.20192,2438.5,2438.1,0.7944]
[1728492483985,4.10107,2438.4,2438.1,0.7944]
[1728492484766,3.79125227,2438.6,2437.5,0.7944]
[1728492484968,3.79125227,2438.6,2437.6,4.10232]
[1728492485202,4.10202,2437.9,2437.5,4.89692]
[1728492485393,4.10202,2437.9,2437.6,0.789692]
[1728492485598,4.10212,2437.8,2437.5,0.7944]
[1728492485802,4.10212,2437.8,2437.4,3.0]
[1728492485803,4.10256,2437.5,2437.4,3.0]
[1728492486309,4.93106,2437.5,2437.4,3.0]
[1728492488598,5.48106,2437.5,2437.4,3.0]
[1728492489593,5.48106,2437.5,2437.2,2.0]
[1728492489911,7.1029,2437.3,2437.2,2.0]
[1728492493202,4.10264,2437.5,2437.2,2.8231]
[1728492493513,4.10264,2437.5,2437.3,0.28231]
[1728492493514,4.10268,2437.5,2437.3,0.28231]
[1728492493723,4.10273,2437.4,2437.3,0.28231]
[1728492494011,4.10273,2437.4,2437.2,2.8231]
[1728492494515,4.1029,2437.3,2437.2,2.0]
[1728492495710,4.10274,2437.4,2437.2,2.0]
[1728492496222,4.1029,2437.3,2437.2,2.0]
[1728492499308,4.1029,2437.3,2437.2,3.71947989]
[1728492499613,4.1029,2437.3,2437.2,2.0]
[1728492502785,2.45804144,2438.8,2437.3,0.8107]
[1728492502786,8.1811,2438.0,2437.3,0.8107]
[1728492503031,4.1024,2437.6,2437.3,0.8107]
[1728492503836,4.10213,2437.8,2437.2,2.0]
[1728492503837,4.1029,2437.3,2437.2,2.0]
[1728492504258,7.1029,2437.3,2437.2,2.0]
[1728492506569,0.42671609,2437.6,2437.2,2.27997]
[1728492506720,4.10257,2437.5,2437.2,2.27997]
[1728492506928,4.10245,2437.6,2437.2,2.27997]
[1728492507220,4.10225,2437.7,2437.3,4.91348]
[1728492507743,4.10225,2437.7,2437.3,0.8106]
[1728492507744,4.1025,2437.6,2437.3,0.8106]
[1728492508055,4.1025,2437.6,2437.2,2.0]
[1728492508056,4.10274,2437.4,2437.2,2.0]
[1728492509049,4.1029,2437.3,2437.2,2.0]
[1728492509646,4.10258,2437.5,2437.2,2.0]
[1728492509841,4.10258,2437.5,2437.3,0.7925]
[1728492510064,4.10273,2437.4,2437.3,0.7925]
[1728492510730,4.10258,2437.5,2437.3,0.7925]
[1728492511126,4.10273,2437.4,2437.3,0.7925]
[1728492512830,4.1029,2437.3,2437.2,2.0]
[1728492513477,7.9111,2437.3,2437.2,2.0]
[1728492513772,7.98235093,2437.3,2437.2,2.0]
[1728492515285,35.93834793,2437.3,2437.2,2.0]
[1728492515776,39.7296002,2437.3,2437.2,2.0]
[1728492516800,39.7296002,2437.3,2436.0,0.7752]
[1728492516801,4.10492,2436.1,2436.0,0.7752]
[1728492517006,4.10557,2435.8,2435.6,0.8271]
[1728492517495,4.10559,2435.7,2435.6,0.8271]
[1728492517657,4.10566,2435.7,2435.2,4.93343]
[1728492517848,4.10566,2435.7,2435.3,0.903987]
[1728492518041,4.10576,2435.6,2435.3,0.903987]
[1728492518441,8.21164,2435.6,2435.3,0.903987]
[1728492518668,4.10576,2435.6,2435.3,0.903987]
[1728492520051,3.20476033,2436.2,2435.4,0.8271]
[1728492520052,3.0,2436.2,2435.4,0.8271]
[1728492520250,4.57995227,2436.3,2435.5,4.10582]
[1728492520251,4.10516,2436.0,2435.5,4.10582]
[1728492520474,4.10516,2436.0,2435.6,1.648283]
[1728492521392,4.10516,2436.0,2435.6,5.754013]
[1728492521589,4.10516,2436.0,2435.6,1.648283]
[1728492522625,4.1054,2435.9,2435.6,1.648283]
[1728492522835,4.10545,2435.8,2435.6,1.648283]
[1728492522979,4.10545,2435.8,2435.6,0.8271]
[1728492522980,4.10559,2435.7,2435.6,0.8271]
[1728492523316,4.10559,2435.7,2435.2,4.10643]
[1728492523317,4.10602,2435.5,2435.3,0.8271]
[1728492523983,4.1061,2435.4,2434.9,11.4869]
[1728492524179,4.1061,2435.4,2435.0,1.93039]
[1728492524517,4.10636,2435.3,2435.0,0.7817]
[1728492526098,4.10648,2435.2,2435.0,0.7817]
[1728492526318,4.1066,2435.1,2435.0,0.7817]
[1728492526515,4.10621,2435.4,2434.7,0.7725]
[1728492526740,4.10678,2435.0,2434.7,0.7725]
[1728492526906,4.10669,2435.1,2434.7,0.7725]
[1728492527231,4.10694,2434.9,2434.7,0.7725]
[1728492527433,4.10694,2434.9,2434.7,1.26051]
[1728492527588,3.7966,2435.6,2434.7,0.7725]
[1728492527589,4.10636,2435.3,2434.7,0.7725]
[1728492527940,7.10652,2435.2,2434.8,4.1071]
[1728492528234,7.10652,2435.2,2434.7,0.7725]
[1728492528534,7.10652,2435.2,2434.7,4.96187607]
[1728492528702,3.0,2435.2,2434.7,0.7725]
[1728492529034,4.10644,2435.2,2434.8,4.595095]
[1728492529999,4.10671,2435.1,2434.8,0.487985]
[1728492530992,4.10593,2435.5,2434.7,4.8797]
[1728492530993,4.10681,2435.0,2434.7,0.7725]
[1728492531204,4.10711,2434.8,2434.7,0.7725]
[1728492531704,4.10711,2434.8,2434.4,0.7642]
[1728492531705,4.10731,2434.7,2434.4,0.7642]
[1728492531905,0.8128,2435.2,2434.4,0.7642]
[1728492531906,8.21506,2434.6,2434.4,0.7642]
[1728492532116,4.10736,2434.7,2434.4,0.7642]
[1728492532834,3.0,2435.3,2434.6,0.758]
[1728492533151,4.10728,2434.7,2434.6,0.758]
[1728492533995,8.21454,2434.8,2434.3,4.86345]
[1728492534840,4.10735,2434.7,2434.3,4.86345]
[1728492535407,4.10721,2434.8,2434.3,4.86345]
[1728492535735,4.10712,2434.8,2434.4,0.486345]
[1728492536537,4.10712,2434.8,2434.4,4.594115]
[1728492537829,4.10737,2434.7,2434.4,0.486345]
[1728492538034,4.10753,2434.6,2434.3,0.7556]
[1728492538341,4.10778,2434.4,2434.3,0.7556]
[1728492539011,4.10778,2434.4,2434.1,0.7901]
[1728492539211,4.10803,2434.3,2434.1,0.7901]
[1728492539443,8.21607,2434.3,2434.1,0.7901]
[1728492539741,4.10781,2434.4,2434.1,0.7901]
[1728492540511,4.10797,2434.3,2434.1,0.7901]
[1728492540712,4.1082,2434.2,2434.0,1.35439549]
[1728492540918,4.10806,2434.3,2434.0,1.35439549]
[1728492541309,4.10825,2434.2,2434.0,1.35439549]
[1728492541646,4.10829,2434.1,2434.0,1.35439549]
[1728492542411,4.10814,2434.2,2434.0,1.35439549]
[1728492542640,4.10798,2434.3,2434.0,1.35439549]
[1728492543648,4.10775,2434.5,2434.0,6.49537704]
[1728492543824,7.92431,2434.7,2434.0,2.38698704]
[1728492543825,4.10805,2434.3,2434.0,2.38698704]
[1728492545554,4.10819,2434.2,2434.0,1.35439549]
[1728492545856,4.10829,2434.1,2434.0,1.35439549]
[1728492547148,7.10829,2434.1,2434.0,1.35439549]
[1728492547913,4.1082,2434.2,2434.0,1.35439549]
[1728492548213,4.10829,2434.1,2434.0,1.35439549]
[1728492548839,30.622467,2434.1,2434.0,1.35439549]
[1728492549229,31.373667,2434.1,2434.0,1.35439549]
[1728492550357,30.622467,2434.1,2434.0,1.35439549]
[1728492551058,26.514177,2434.1,2434.0,1.35439549]
[1728492551420,26.514177,2434.1,2434.0,2.70171204]
[1728492552235,26.514177,2434.1,2434.0,2.15539549]
[1728492552450,26.514177,2434.1,2434.0,6.26385549]
[1728492553261,26.514177,2434.1,2434.0,2.15539549]
[1728492553550,26.514177,2434.1,2434.0,6.26385549]
[1728492553760,26.514177,2434.1,2434.0,1.35439549]
[1728492554854,26.514177,2434.1,2434.0,6.49708104]
[1728492555074,24.9760616,2434.1,2434.0,11.06610388]
[1728492555659,24.9760616,2434.1,2434.0,7.26738104]
[1728492558553,24.9760616,2434.1,2434.0,11.06610388]
[1728492558760,24.9760616,2434.1,2434.0,7.26738104]
[1728492558937,24.9760616,2434.1,2434.0,7.34953902]
[1728492559387,24.9760616,2434.1,2434.0,11.14826186]
[1728492559675,24.9760616,2434.1,2434.0,11.06610388]
[1728492559984,24.9760616,2434.1,2434.0,7.26738104]
[1728492560189,24.9760616,2434.1,2434.0,1.35439549]
[1728492561150,24.9760616,2434.1,2434.0,6.28875549]
[1728492561552,24.9760616,2434.1,2434.0,2.18029549]
[1728492561873,24.9760616,2434.1,2434.0,1.35439549]
[1728492562758,24.9760616,2434.1,2434.0,5.46285549]
[1728492562990,24.9760616,2434.1,2434.0,6.50120004]
[1728492566697,29.0843516,2434.1,2434.0,1.35439549]
[1728492566901,24.9760616,2434.1,2434.0,1.35439549]
[1728492567456,24.9760616,2434.1,2434.0,5.46285549]
[1728492571061,24.9760616,2434.1,2434.0,1.35439549]
[1728492572997,24.9760616,2434.1,2434.0,5.46285549]
[1728492573212,23.43935314,2434.1,2434.0,11.37909716]
[1728492573358,23.43935314,2434.1,2434.0,12.23111919]